fUSD/lending_fUSD_20250123
["ID","MTS","AMOUNT","RATE_DAILY","PERIOD"]
[350168498,1737666643020,-773.775,0.0001898,2]
[350168499,1737666643031,-9942.16131333,0.0001898,2]
[350168524,1737666643376,-500.0,0.00018903,2]
[350168526,1737666643387,-384.08532964,0.0001898,2]
[350168528,1737666643399,-718.97,0.0001898,2]
[350168532,1737666643455,-2063.6,0.0001898,2]
[350168533,1737666643469,-455.70081216,0.0001898,2]
[350168764,1737666645603,-500.0,0.00018081,2]
[350168766,1737666645612,-861.478736,0.00018081,2]
[350168768,1737666645622,-500.0,0.00018189,2]
[350168770,1737666645631,-500.0,0.00018355,2]
[350168772,1737666645644,-861.478736,0.00018355,2]
[350168774,1737666645654,-500.0,0.00018463,2]
[350168776,1737666645663,-500.0,0.00018737,2]
[350168778,1737666645676,-572.003083,0.00018783,2]
[350168780,1737666645685,-500.0,0.00018878,2]
[350168782,1737666645695,-1059.0,0.0001898,2]
[350168784,1737666645704,-873.73702622,0.0001898,2]
[350168786,1737666645715,-1627.21312278,0.0001898,2]
[350168788,1737666645726,-5607.80042875,0.0001898,2]
[350168791,1737666645738,-10364.754633,0.0001898,2]
[350168793,1737666645754,-5133.712321,0.0001898,2]
[350168795,1737666645765,-1620.49536001,0.0001898,2]
[350168798,1737666645776,-19883.57542205,0.0001898,2]
[350168805,1737666645839,-861.478736,0.00018629,2]
[350168807,1737666645849,-1730.621264,0.0001898,2]
[350168810,1737666645861,-308655.72747172,0.0001898,2]
[350168812,1737666645871,-107419.18120465,0.0001898,2]
[350168814,1737666645882,-3769.6535012,0.0001898,2]
[350168817,1737666645905,-500.0,0.00018737,2]
[350168819,1737666645914,-1000.0,0.00018737,2]
[350168821,1737666645924,-3571.17685316,0.0001898,2]
[350168968,1737667487079,169.43,0.00010137,2]
[350168970,1737667508475,223586.17659361,0.00012,2]
[350168987,1737667679792,131791.29225607,0.0001,2]
[350169008,1737667831945,-395.37510533,0.00014532,2]
[350169009,1737667831957,-196.03489467,0.00014532,2]
[350169010,1737667831966,-550.0,0.00015,2]
[350169011,1737667831975,-164.76416294,0.00016238,2]
[350169012,1737667831986,-263.46,0.0001629,2]
[350169013,1737667831995,-1000.0,0.00016299,2]
[350169014,1737667832005,-550.0,0.00016299,2]
[350169015,1737667832014,-457.44751787,0.000163,4]
[350169016,1737667832034,-4710.59138291,0.000163,4]
[350169017,1737667832045,-10568.7378646,0.000163,4]
[350169018,1737667832071,-6018.81893899,0.000163,4]
[350169019,1737667832137,-479.93,0.000163,4]
[350169020,1737667832148,-1026.8258,0.000163,4]
[350169021,1737667832158,-306.0,0.000163,4]
[350169022,1737667832199,-22930.38575662,0.000163,4]
[350169023,1737667832262,-387.2089524,0.000163,4]
[350169049,1737667837955,-308.770001,0.000151,3]
[350169050,1737667837967,-419.229999,0.000151,3]
[350169051,1737667837976,-482.640001,0.000154,5]
[350169052,1737667838006,-5075.359999,0.000154,5]
[350169053,1737667838017,-625.20693362,0.00016238,2]
[350169054,1737667838026,-176.26285101,0.00016299,2]
[350169055,1737667838035,-9903.50177637,0.000163,4]
[350169056,1737667838046,-35749.35902333,0.000163,4]
[350169057,1737667838057,-1431.7563213,0.000163,4]
[350169058,1737667838068,-1619.97679781,0.000163,4]
[350169059,1737667838080,-51547.4914287,0.000163,4]
[350169060,1737667838166,-1025.5,0.000163,4]
[350169061,1737667838177,-16613.90422462,0.000163,4]
[350169062,1737667838188,-3259.64484272,0.000163,4]
[350169063,1737667838213,-1029.26442,0.000163,4]
[350169064,1737667838225,-206112.14787176,0.000163,4]
[350169065,1737667838234,-119664.8405477,0.000163,2]
[350169066,1737667838243,-533.84001556,0.00016338,2]
[350169067,1737667838251,-512.01,0.00016424,2]
[350169068,1737667838261,-621.27,0.00016438,2]
[350169070,1737667838270,-500.0,0.00016438,2]
[350169071,1737667838279,-1270.5,0.00016438,2]
[350169072,1737667838288,-500.0,0.00016438,2]
[350169073,1737667838297,-500.0,0.00016438,2]
[350169074,1737667838307,-1316.41,0.00016438,2]
[350169075,1737667838316,-716.54,0.00016438,2]
[350169076,1737667838326,-500.0,0.00016438,2]
[350169078,1737667838335,-1100.74,0.00016438,2]
[350169080,1737667838344,-749.01,0.00016438,2]
[350169082,1737667838354,-500.0,0.00016438,2]
[350169083,1737667838363,-500.0,0.00016438,2]
[350169084,1737667838373,-705.84,0.00016438,2]
[350169085,1737667838382,-635.98,0.00016438,2]
[350169086,1737667838391,-1642.03,0.00016438,2]
[350169087,1737667838400,-1296.66,0.00016438,2]
[350169088,1737667838409,-620.42,0.00016438,2]
[350169089,1737667838418,-500.0,0.00016438,2]
[350169090,1737667838427,-500.0,0.00016438,2]
[350169091,1737667838436,-500.0,0.00016438,2]
[350169092,1737667838447,-526.29,0.00016438,2]
[350169093,1737667838456,-1464.49,0.00016438,2]
[350169094,1737667838466,-500.0,0.00016438,2]
[350169095,1737667838475,-500.0,0.00016438,2]
[350169096,1737667838485,-1221.08,0.00016438,2]
[350169097,1737667838495,-500.0,0.00016438,2]
[350169098,1737667838505,-500.0,0.00016438,2]
[350169099,1737667838516,-1773.06,0.00016438,2]
[350169100,1737667838526,-500.0,0.00016438,2]
[350169101,1737667838537,-500.0,0.00016438,2]
[350169102,1737667838546,-500.0,0.00016438,2]
[350169103,1737667838556,-500.0,0.00016438,2]
[350169104,1737667838565,-1204.26,0.00016438,2]
[350169105,1737667838575,-500.0,0.00016438,2]
[350169106,1737667838584,-500.0,0.00016438,2]
[350169107,1737667838594,-756.85,0.00016438,2]
[350169108,1737667838604,-529.89,0.00016438,2]
[350169109,1737667838613,-500.0,0.00016438,2]
[350169110,1737667838623,-609.66,0.00016438,2]
[350169111,1737667838632,-500.0,0.00016438,2]
[350169112,1737667838641,-500.0,0.00016438,2]
[350169113,1737667838650,-500.0,0.00016438,2]
[350169114,1737667838659,-500.0,0.00016438,2]
[350169115,1737667838668,-500.0,0.00016438,2]
[350169116,1737667838677,-500.0,0.00016438,2]
[350169117,1737667838863,-302.5407008,0.00016438,2]
[350169118,1737667838873,-500.0,0.00016438,2]
[350169119,1737667838883,-377.13400342,0.00016438,2]
[350169120,1737667838893,-1444.3,0.00016438,2]
[350169121,1737667838903,-4940.83715072,0.00016568,2]
[350169122,1737667838912,-1675.48044133,0.0001657,2]
[350169123,1737667838921,-306.28895625,0.00016577,2]
[350169124,1737667838931,-250.95860889,0.00016577,2]
[350169125,1737667838941,-214.3200424,0.00016578,2]
[350169126,1737667838952,-1675.48044133,0.00016579,2]
[350169127,1737667838963,-200.0,0.00016588,2]
[350169128,1737667838973,-200.0,0.00016593,2]
[350169129,1737667838983,-7633.70869186,0.00016599,2]
[350169130,1737667838993,-250.95860889,0.00016605,2]
[350169131,1737667839003,-306.28895625,0.00016609,2]
[350169132,1737667839012,-214.3200424,0.00016612,2]
[350169133,1737667839021,-214.3200424,0.00016619,2]
[350169134,1737667839032,-1675.48044133,0.00016623,2]
[350169135,1737667839041,-306.28895625,0.00016625,2]
[350169136,1737667839051,-250.95860889,0.00016629,2]
[350169137,1737667839060,-7633.70869186,0.00016645,2]
[350169138,1737667839069,-214.3200424,0.0001665,2]
[350169139,1737667839079,-306.28895625,0.00016656,2]
[350169140,1737667839089,-200.0,0.00016659,2]
[350169141,1737667839099,-1675.48044133,0.00016662,2]
[350169142,1737667839109,-7633.70869186,0.00016666,2]
[350169143,1737667839118,-250.0,0.00016668,2]
[350169144,1737667839127,-200.0,0.00016676,2]
[350169145,1737667839136,-250.95860889,0.00016677,2]
[350169146,1737667839146,-250.95860889,0.00016683,2]
[350169147,1737667839155,-1675.48044133,0.00016683,2]
[350169148,1737667839165,-214.3200424,0.00016686,2]
[350169149,1737667839174,-7633.70869186,0.00016687,2]
[350169150,1737667839184,-306.28895625,0.00016692,2]
[350169151,1737667839193,-842.73716707,0.00016694,2]
[350169152,1737667839216,-288.59545216,0.00016694,2]
[350169154,1737667839817,-500.0,0.00016438,2]
[350169155,1737667839826,-500.0,0.00016438,2]
[350169156,1737667839836,-218.314998,0.00016694,2]
[350169157,1737667839886,-6284.06107463,0.00016694,2]
[350169158,1737667839896,-200.0,0.00016697,2]
[350169159,1737667839905,-621.27,0.00016712,2]
[350169160,1737667839916,-500.0,0.00016712,2]
[350169161,1737667839926,-1270.5,0.00016712,2]
[350169162,1737667839935,-500.0,0.00016712,2]
[350169163,1737667839947,-500.0,0.00016712,2]
[350169164,1737667839956,-1316.41,0.00016712,2]
[350169165,1737667839966,-716.54,0.00016712,2]
[350169166,1737667839976,-500.0,0.00016712,2]
[350169167,1737667839987,-1100.74,0.00016712,2]
[350169168,1737667839996,-749.01,0.00016712,2]
[350169169,1737667840005,-500.0,0.00016712,2]
[350169170,1737667840014,-500.0,0.00016712,2]
[350169171,1737667840024,-705.84,0.00016712,2]
[350169172,1737667840035,-635.98,0.00016712,2]
[350169173,1737667840044,-1642.03,0.00016712,2]
[350169174,1737667840054,-1296.66,0.00016712,2]
[350169175,1737667840063,-560.95892537,0.00016712,2]
[350169176,1737667840075,-59.46107463,0.00016712,2]
[350169177,1737667840084,-500.0,0.00016712,2]
[350169178,1737667840094,-500.0,0.00016712,2]
[350169179,1737667840105,-500.0,0.00016712,2]
[350169180,1737667840115,-216.16892537,0.00016712,2]
[350169181,1737667840128,-310.12107463,0.00016712,2]
[350169182,1737667840138,-213.97602677,0.00016712,2]
[350169183,1737667841953,-500.0,0.00016438,2]
[350169184,1737667841962,-185.4,0.00016712,2]
[350169185,1737667841974,-1065.11397323,0.00016712,2]
[350169186,1737667841983,-164.68602677,0.00016712,2]
[350169187,1737667841995,-335.31397323,0.00016712,2]
[350169188,1737667842004,-818.51523581,0.00016712,2]
[350169189,1737667842015,-402.56476419,0.00016712,2]
[350169190,1737667842028,-500.0,0.00016712,2]
[350169191,1737667842038,-500.0,0.00016712,2]
[350169192,1737667842047,-1773.06,0.00016712,2]
[350169193,1737667842056,-500.0,0.00016712,2]
[350169194,1737667842066,-500.0,0.00016712,2]
[350169195,1737667842076,-500.0,0.00016712,2]
[350169196,1737667842085,-1204.26,0.00016712,2]
[350169197,1737667842095,-376.07158285,0.00016712,2]
[350169198,1737667842105,-500.0,0.00016712,2]
[350169199,1737667842115,-756.85,0.00016712,2]
[350169200,1737667842124,-395.67174308,0.00016712,2]
[350169201,1737667842240,-399.36087,0.00016438,2]
[350169202,1737667842263,-100.63913,0.00016438,2]
[350169203,1737667842273,-134.21825692,0.00016712,2]
[350169204,1737667842282,-160.35696081,0.00016712,2]
[350169205,1737667842360,-449.30303919,0.00016712,2]
[350169206,1737667842369,-184.44722856,0.00016712,2]
[350169208,1737667842381,-315.55277144,0.00016712,2]
[350169209,1737667842391,-500.0,0.00016712,2]
[350169211,1737667842400,-500.0,0.00016712,2]
[350169213,1737667842410,-500.0,0.00016712,2]
[350169214,1737667842419,-500.0,0.00016712,2]
[350169216,1737667842429,-500.0,0.00016712,2]
[350169217,1737667842438,-500.0,0.00016712,2]
[350169218,1737667842448,-1444.3,0.00016712,2]
[350169219,1737667842457,-500.0,0.00016712,2]
[350169220,1737667842467,-500.0,0.00016712,2]
[350169221,1737667842477,-591.41,0.00016796,2]
[350169222,1737667842487,-3908.73722856,0.00016883,2]
[350169223,1737667842512,-500.0,0.00016712,2]
[350169224,1737667842521,-472.874852,0.00016883,2]
[350169249,1737667842758,-500.0,0.00016438,2]
[350169250,1737667842768,-559.22507009,0.00016883,2]
[350169251,1737667842777,-401.51,0.00016941,2]
[350169252,1737667842787,-1000.0,0.00016961,2]
[350169253,1737667842797,-171.38,0.00016972,2]
[350169254,1737667842807,-621.27,0.00016986,2]
[350169255,1737667842816,-500.0,0.00016986,2]
[350169256,1737667842825,-1241.32690156,0.00016986,2]
[350169257,1737667842837,-29.17309844,0.00016986,2]
[350169258,1737667842846,-500.0,0.00016986,2]
[350169259,1737667842856,-218.38264743,0.00016986,2]
[350169260,1737667842889,-281.61735257,0.00016986,2]
[350169261,1737667842899,-134.12545983,0.00016986,2]
[350169262,1737667842940,-1182.28454017,0.00016986,2]
[350169263,1737667842949,-716.54,0.00016986,2]
[350169264,1737667842962,-1100.74,0.00016986,2]
[350169265,1737667842972,-749.01,0.00016986,2]
[350169266,1737667842981,-500.0,0.00016986,2]
[350169267,1737667842991,-500.0,0.00016986,2]
[350169268,1737667843000,-705.84,0.00016986,2]
[350169269,1737667843009,-635.98,0.00016986,2]
[350169270,1737667843018,-1642.03,0.00016986,2]
[350169271,1737667843028,-1296.66,0.00016986,2]
[350169272,1737667843039,-620.42,0.00016986,2]
[350169273,1737667843048,-500.0,0.00016986,2]
[350169274,1737667843058,-500.0,0.00016986,2]
[350169275,1737667843068,-526.29,0.00016986,2]
[350169276,1737667843077,-1464.49,0.00016986,2]
[350169277,1737667843087,-500.0,0.00016986,2]
[350169278,1737667843096,-1221.08,0.00016986,2]
[350169279,1737667843107,-431.96354509,0.00016986,2]
[350169280,1737667843119,-68.03645491,0.00016986,2]
[350169281,1737667843128,-500.0,0.00016986,2]
[350169282,1737667843137,-1773.06,0.00016986,2]
[350169283,1737667843146,-188.56557509,0.00016986,2]
[350169284,1737667843158,-311.43442491,0.00016986,2]
[350169285,1737667843167,-500.0,0.00016986,2]
[350169286,1737667843176,-1204.26,0.00016986,2]
[350169287,1737667843185,-500.0,0.00016986,2]
[350169288,1737667843194,-756.85,0.00016986,2]
[350169289,1737667843203,-529.89,0.00016986,2]
[350169290,1737667843211,-609.66,0.00016986,2]
[350169291,1737667843220,-500.0,0.00016986,2]
[350169292,1737667843229,-500.0,0.00016986,2]
[350169294,1737667843238,-500.0,0.00016986,2]
[350169295,1737667843247,-500.0,0.00016986,2]
[350169296,1737667843256,-245.20587084,0.00016986,2]
[350169297,1737667843265,-500.0,0.00016986,2]
[350169298,1737667843275,-481.27735367,0.00016986,2]
[350169299,1737667843283,-1444.3,0.00016986,2]
[350169300,1737667843292,-500.0,0.00016986,2]
[350169301,1737667843301,-500.0,0.00016986,2]
[350169302,1737667843310,-500.0,0.00016986,2]
[350169303,1737667843319,-600.0,0.00017,2]
[350169304,1737667843328,-164.22,0.00017015,2]
[350169305,1737667843337,-250.0,0.00017049,2]
[350169306,1737667843346,-4719.90555488,0.00017075,2]
[350169307,1737667843362,-1396.8172432,0.00017075,2]
[350169308,1737667843373,-9730.96720192,0.00017075,2]
[350169309,1737667843383,-290.7,0.00017138,2]
[350169310,1737667843392,-498.33279808,0.00017197,2]
[350169312,1737667845872,-500.0,0.00016438,2]
[350169313,1737667845881,-500.0,0.00016438,2]
[350169314,1737667845891,-500.0,0.00016438,2]
[350169315,1737667845900,-500.0,0.00016712,2]
[350169316,1737667845909,-500.0,0.00016712,2]
[350169317,1737667845919,-500.0,0.00016986,2]
[350169318,1737667845929,-500.0,0.00016986,2]
[350169319,1737667845938,-4442.50435257,0.00017197,2]
[350169320,1737667845948,-1283.83,0.00017198,2]
[350169321,1737667845962,-250.0,0.00017211,2]
[350169322,1737667845971,-3366.99,0.00017243,2]
[350169323,1737667845981,-263.46,0.0001725,2]
[350169324,1737667845990,-621.27,0.0001726,2]
[350169325,1737667846000,-500.0,0.0001726,2]
[350169326,1737667846010,-1270.5,0.0001726,2]
[350169327,1737667846019,-500.0,0.0001726,2]
[350169328,1737667846028,-500.0,0.0001726,2]
[350169329,1737667846041,-1316.41,0.0001726,2]
[350169330,1737667846051,-716.54,0.0001726,2]
[350169331,1737667846060,-1100.74,0.0001726,2]
[350169332,1737667846069,-749.01,0.0001726,2]
[350169333,1737667846078,-500.0,0.0001726,2]
[350169334,1737667846088,-500.0,0.0001726,2]
[350169335,1737667846097,-705.84,0.0001726,2]
[350169336,1737667846108,-635.98,0.0001726,2]
[350169337,1737667846117,-1642.03,0.0001726,2]
[350169338,1737667846249,-1296.66,0.0001726,2]
[350169339,1737667846284,-620.42,0.0001726,2]
[350169340,1737667846293,-500.0,0.0001726,2]
[350169341,1737667846303,-500.0,0.0001726,2]
[350169343,1737667846312,-526.29,0.0001726,2]
[350169344,1737667846320,-1464.49,0.0001726,2]
[350169345,1737667846330,-601.96,0.0001726,2]
[350169346,1737667846339,-1221.08,0.0001726,2]
[350169347,1737667846347,-500.0,0.0001726,2]
[350169348,1737667846356,-500.0,0.0001726,2]
[350169349,1737667846365,-1773.06,0.0001726,2]
[350169350,1737667846374,-500.0,0.0001726,2]
[350169351,1737667846383,-500.0,0.0001726,2]
[350169352,1737667846391,-1204.26,0.0001726,2]
[350169353,1737667846400,-500.0,0.0001726,2]
[350169354,1737667846409,-756.85,0.0001726,2]
[350169355,1737667846418,-529.89,0.0001726,2]
[350169356,1737667846427,-609.66,0.0001726,2]
[350169357,1737667846435,-500.0,0.0001726,2]
[350169358,1737667846444,-500.0,0.0001726,2]
[350169359,1737667846454,-500.0,0.0001726,2]
[350169360,1737667846463,-500.0,0.0001726,2]
[350169361,1737667846472,-1444.3,0.0001726,2]
[350169362,1737667846481,-500.0,0.0001726,2]
[350169363,1737667846491,-500.0,0.0001726,2]
[350169364,1737667846500,-500.0,0.0001726,2]
[350169365,1737667846509,-500.0,0.0001726,2]
[350169366,1737667846518,-285.0,0.00017424,2]
[350169367,1737667846527,-4940.83715065,0.00017512,2]
[350169368,1737667846536,-621.27,0.00017534,2]
[350169369,1737667846545,-500.0,0.00017534,2]
[350169370,1737667846554,-1270.5,0.00017534,2]
[350169371,1737667846563,-500.0,0.00017534,2]
[350169372,1737667846575,-500.0,0.00017534,2]
[350169373,1737667846584,-1316.41,0.00017534,2]
[350169374,1737667846593,-716.54,0.00017534,2]
[350169375,1737667846602,-1100.74,0.00017534,2]
[350169376,1737667846611,-749.01,0.00017534,2]
[350169377,1737667846620,-524.68038865,0.00017534,2]
[350169378,1737667846629,-705.84,0.00017534,2]
[350169379,1737667846638,-635.98,0.00017534,2]
[350169380,1737667846647,-1642.03,0.00017534,2]
[350169381,1737667846655,-1296.66,0.00017534,2]
[350169382,1737667846664,-620.42,0.00017534,2]
[350169383,1737667846673,-500.0,0.00017534,2]
[350169384,1737667846682,-500.0,0.00017534,2]
[350169385,1737667846691,-526.29,0.00017534,2]
[350169386,1737667846700,-1464.49,0.00017534,2]
[350169387,1737667846709,-1221.08,0.00017534,2]
[350169388,1737667846718,-500.0,0.00017534,2]
[350169389,1737667846727,-377.85134996,0.00017534,2]
[350169390,1737667846737,-1773.06,0.00017534,2]
[350169391,1737667846746,-500.0,0.00017534,2]
[350169392,1737667846755,-1204.26,0.00017534,2]
[350169393,1737667846764,-500.0,0.00017534,2]
[350169394,1737667846773,-756.85,0.00017534,2]
[350169395,1737667846782,-529.89,0.00017534,2]
[350169396,1737667846791,-609.66,0.00017534,2]
[350169397,1737667846800,-500.0,0.00017534,2]
[350169398,1737667846809,-500.0,0.00017534,2]
[350169399,1737667846820,-500.0,0.00017534,2]
[350169400,1737667846828,-1444.3,0.00017534,2]
[350169401,1737667846838,-500.0,0.00017534,2]
[350169402,1737667846847,-500.0,0.00017534,2]
[350169403,1737667846859,-500.0,0.00017534,2]
[350169404,1737667846868,-500.0,0.00017534,2]
[350169405,1737667846878,-184.6,0.0001754,2]
[350169406,1737667846888,-153.0,0.00017548,2]
[350169407,1737667846896,-153.0,0.00017548,2]
[350169408,1737667846906,-153.0,0.00017548,2]
[350169409,1737667846915,-151.0,0.00017801,2]
[350169410,1737667846924,-3903.0,0.00017801,2]
[350169411,1737667846934,-150.0,0.00017801,2]
[350169412,1737667846944,-621.27,0.00017808,2]
[350169413,1737667846956,-500.0,0.00017808,2]
[350169414,1737667846966,-1270.5,0.00017808,2]
[350169415,1737667846975,-500.0,0.00017808,2]
[350169416,1737667846984,-500.0,0.00017808,2]
[350169417,1737667846994,-1316.41,0.00017808,2]
[350169418,1737667847003,-716.54,0.00017808,2]
[350169419,1737667847013,-1100.74,0.00017808,2]
[350169420,1737667847022,-749.01,0.00017808,2]
[350169421,1737667847032,-705.84,0.00017808,2]
[350169422,1737667847041,-635.98,0.00017808,2]
[350169423,1737667847050,-1642.03,0.00017808,2]
[350169424,1737667847060,-1296.66,0.00017808,2]
[350169425,1737667847069,-620.42,0.00017808,2]
[350169426,1737667847080,-324.44623589,0.00017808,2]
[350169427,1737667847090,-500.0,0.00017808,2]
[350169428,1737667847099,-526.29,0.00017808,2]
[350169429,1737667847116,-1464.49,0.00017808,2]
[350169430,1737667847126,-1221.08,0.00017808,2]
[350169431,1737667847136,-500.0,0.00017808,2]
[350169432,1737667847146,-1773.06,0.00017808,2]
[350169433,1737667847155,-500.0,0.00017808,2]
[350169434,1737667847164,-1204.26,0.00017808,2]
[350169435,1737667847174,-500.0,0.00017808,2]
[350169436,1737667847183,-756.85,0.00017808,2]
[350169437,1737667847192,-529.89,0.00017808,2]
[350169438,1737667847202,-609.66,0.00017808,2]
[350169439,1737667847211,-500.0,0.00017808,2]
[350169440,1737667847220,-500.0,0.00017808,2]
[350169441,1737667847229,-1444.3,0.00017808,2]
[350169442,1737667847239,-500.0,0.00017808,2]
[350169443,1737667847248,-548.96,0.00017808,2]
[350169444,1737667847258,-500.0,0.00017808,2]
[350169445,1737667847267,-500.0,0.00017808,2]
[350169446,1737667847276,-577.43,0.00017825,2]
[350169447,1737667847285,-4940.83715065,0.00017827,2]
[350169448,1737667847294,-155.82,0.00017883,30]
[350169449,1737667847303,-1190.16646739,0.000179,2]
[350169450,1737667847312,-150.0,0.00017978,2]
[350169451,1737667847321,-2609.8756,0.00017981,2]
[350169452,1737667847330,-6806.8501,0.00017981,2]
[350169453,1737667847339,-426.3266,0.00017981,2]
[350169454,1737667847348,-14836.6793,0.00017982,2]
[350169455,1737667847361,-1589.53420899,0.00018,3]
[350169456,1737667847370,-598.22040524,0.00018,3]
[350169457,1737667847379,-77356.61669159,0.00018,10]
[350169458,1737667847388,-1135.03853704,0.00018,2]
[350169459,1737667847398,-306.27946759,0.00018,2]
[350169460,1737667847407,-1190.16646739,0.00018038,2]
[350169461,1737667847416,-533.84001555,0.00018074,2]
[350169462,1737667847426,-9461.59067676,0.0001808,2]
[350169463,1737667847435,-500.0,0.00018081,2]
[350169464,1737667847445,-500.0,0.00018081,2]
[350169465,1737667847455,-500.0,0.00018081,2]
[350169466,1737667847466,-500.0,0.00018081,2]
[350169467,1737667847475,-500.0,0.00018081,2]
[350169468,1737667847485,-500.0,0.00018081,2]
[350169469,1737667847494,-500.0,0.00018081,2]
[350169470,1737667847504,-500.0,0.00018081,2]
[350169471,1737667847514,-500.0,0.00018081,2]
[350169472,1737667847525,-500.0,0.00018081,2]
[350169473,1737667847535,-500.0,0.00018081,2]
[350169474,1737667847544,-500.0,0.00018081,2]
[350169475,1737667847554,-500.0,0.00018081,2]
[350169476,1737667847563,-500.0,0.00018081,2]
[350169477,1737667847573,-500.0,0.00018081,2]
[350169478,1737667847583,-525.54689573,0.00018081,2]
[350169479,1737667847592,-500.0,0.00018081,2]
[350169480,1737667847602,-500.0,0.00018081,2]
[350169481,1737667847615,-500.0,0.00018081,2]
[350169482,1737667847624,-500.0,0.00018081,2]
[350169483,1737667847634,-414.62211307,0.00018081,2]
[350169484,1737667847643,-500.0,0.00018081,2]
[350169485,1737667847652,-500.0,0.00018081,2]
[350169486,1737667847661,-500.0,0.00018081,2]
[350169487,1737667847670,-500.0,0.00018081,2]
[350169488,1737667847679,-500.0,0.00018081,2]
[350169489,1737667847688,-500.0,0.00018081,2]
[350169490,1737667847698,-500.0,0.00018081,2]
[350169491,1737667847708,-500.0,0.00018081,2]
[350169492,1737667847717,-500.0,0.00018081,2]
[350169493,1737667847727,-500.0,0.00018081,2]
[350169494,1737667847735,-500.0,0.00018081,2]
[350169495,1737667847745,-500.0,0.00018081,2]
[350169496,1737667847754,-500.0,0.00018081,2]
[350169497,1737667847763,-500.0,0.00018081,2]
[350169498,1737667847774,-500.0,0.00018081,2]
[350169499,1737667847783,-500.0,0.00018081,2]
[350169500,1737667847792,-500.0,0.00018081,2]
[350169501,1737667847802,-500.0,0.00018081,2]
[350169502,1737667847811,-500.0,0.00018081,2]
[350169503,1737667847821,-500.0,0.00018081,2]
[350169504,1737667847830,-500.0,0.00018081,2]
[350169505,1737667847840,-500.0,0.00018081,2]
[350169506,1737667847850,-500.0,0.00018081,2]
[350169507,1737667847863,-500.0,0.00018081,2]
[350169508,1737667847872,-500.0,0.00018081,2]
[350169509,1737667847882,-500.0,0.00018081,2]
[350169510,1737667847891,-500.0,0.00018081,2]
[350169511,1737667847900,-500.0,0.00018081,2]
[350169512,1737667847910,-500.0,0.00018081,2]
[350169513,1737667847919,-500.0,0.00018081,2]
[350169514,1737667847928,-500.0,0.00018081,2]
[350169515,1737667847938,-500.0,0.00018081,2]
[350169516,1737667847949,-500.0,0.00018081,2]
[350169517,1737667847959,-500.0,0.00018081,2]
[350169518,1737667847968,-500.0,0.00018081,2]
[350169519,1737667847977,-500.0,0.00018081,2]
[350169520,1737667847987,-523.97,0.00018081,2]
[350169521,1737667847997,-500.0,0.00018081,2]
[350169522,1737667848006,-487.66188829,0.00018081,2]
[350169523,1737667848015,-500.0,0.00018081,2]
[350169524,1737667848025,-500.0,0.00018081,2]
[350169525,1737667848035,-500.0,0.00018081,2]
[350169526,1737667848045,-500.0,0.00018081,2]
[350169527,1737667848055,-500.0,0.00018081,2]
[350169528,1737667848064,-500.0,0.00018081,2]
[350169529,1737667848074,-500.0,0.00018081,2]
[350169530,1737667848083,-500.0,0.00018081,2]
[350169531,1737667848092,-621.27,0.00018082,2]
[350169532,1737667848105,-500.0,0.00018082,2]
[350169533,1737667848114,-1270.5,0.00018082,2]